Cogmind - Beta 13 @@@ ROGUE MODE // 2024.05.01 @ 21:18:46 Player: leiavoia Result: Heading to fleet! Performance ------------- Evolutions (9) 4500 Regions Visited (29) 5800 Robots Destroyed (301) 1505 Value Destroyed (12181) 12181 Prototype IDs (80) 1600 Alien Tech Used (13) 2600 Bonus (29456) 29456 TOTAL SCORE: 57642 Bonus ------- Triggered Max Security 2000 High Alert Combat Kills 3588 Follower Combat Kills 6088 Awakened Behemoth Slayer 1000 Network Hubs Disabled 600 Met Data Miner 300 Met Imprinter 300 Destroyed Z-Imprinter 1000 Built Enhanced Grunts 300 A7 Reached Mainframe 300 Met R17 at Cetus 500 Used Core Reset Matrix 3000 Hacked Protovariant 500 Met R17 at Research 2000 Scanned by Researcher 500 Met Sigix 2000 Activated Exoskeleton 3000 Win 3000 Friendly Fire -520 Cogmind --------- Core Integrity 1242/1600 Matter 501/550 Energy 213/225 System Corruption 0% Temperature Cool (20) Movement Hovering (40) Location To Fleet Rendezvous Parts ------- > --- POWER (3) -------- Light Ion Engine Micro Antimatter Reactor Micro Antimatter Reactor > --- PROPULSION (7) --- Cooled Aerolev Unit Improved Antigrav System Improved Linear Gravjet Cooled Antigrav System Combat Antigrav System Combat Antigrav System Combat Antigrav System > --- UTILITY (12) ----- Advanced Heat Sink Large Storage Unit Matter Compressor Triangulator Enhanced Optical Array Advanced Signal Interpreter Weapon Mount Advanced Phase Shifter Improved Weapon Shielding Graphene Brace Beam Splitter System Mapper > --- WEAPON (3) ------- Enhanced Nova Cannon Enhanced Nova Cannon Gravity Flail > --- INVENTORY (15) --- Particle Reactor Quantum Reactor Linear Gravjet Linear Gravjet Improved Antigrav System Advanced Weapon Cycler Improved Phase Shifter Advanced Powered Armor Terrabomb Microwarp Drive Perforator Micro-nuke Launcher Micro-nuke Launcher Peak State ------------ > --- POWER ------------ Micro Antimatter Reactor Micro Antimatter Reactor Micro Antimatter Reactor > --- PROPULSION ------- Cooled Aerolev Unit Combat Gravmag System Combat Gravmag System Cooled Antigrav System Cooled Antigrav System Antigrav Array > --- UTILITY ---------- Large Storage Unit Matter Compressor Enhanced Optical Array Advanced Sensor Array Advanced Signal Interpreter Weapon Mount Advanced Phase Shifter Medium Regenerative Plating Medium Regenerative Plating Graphene Brace Beam Splitter System Mapper > --- WEAPON ----------- Perforator Gravity Flail > --- INVENTORY -------- Cooled Aerolev Unit Cooled Aerolev Unit Improved Antigrav System Advanced Powered Armor Advanced Powered Armor AEGIS Remote Shield High-powered Transdimensional Reconstructor Terrabomb Microwarp Drive Enhanced Nova Cannon Hypervelocity Multirail Heavy Gauss Cannon Heavy Shock Bomb Launcher Advanced Micro-nuke Launcher [Rating: 199] Favorites ----------- Power Micro Antimatter Reactor Engine Light Ion Engine Power Core Micro Fission Core Reactor Micro Antimatter Reactor Propulsion Combat Airjet Hover Unit Combat Airjet Utility Large Storage Unit Device Seismic Detector Storage Large Storage Unit Processor Enhanced Optical Array Hackware Advanced Hacking Suite Protection Improved Propulsion Shielding Artifact Microwarp Drive Weapon Katana Energy Gun Medium Laser Energy Cannon Enhanced Nova Cannon Ballistic Gun Hypervelocity Gauss Rifle Ballistic Cannon Light Cannon Launcher Advanced Micro-nuke Launcher Impact Weapon Gravity Flail Slashing Weapon Katana Piercing Weapon CR-A16's Behemoth Slayer Special Melee Weapon Datajack Build | -11 -10 -10 -10 -9 -8 -7 -7 -7 -7 -7 -7 -6 -6 -6 -6 -6 -5 -5 -4 -4 -4 -4 -4 -3 -3 -2 -2 -2 -1 ------- Run | Yrd Mat Min Exi Min Mat Fac Was Fac Low Low Dat Pro Fac Low Zio Dee Pro Fac Fac Ext Cet Arc Hub Res Tes Res Qua Sec Acc Slots Evolved 18 | . . . . . 4 2 . . . . . . 2 . . . . 2 2 . . . . 2 . 2 . . 2 Power 2 | . . . . . . . . . . . . . . . . . . 1 . . . . . . . . . . 1 Propulsion 5 | . . . . . 2 1 . . . . . . . . . . . 1 . . . . . . . 1 . . . Utility 10 | . . . . . 2 1 . . . . . . 2 . . . . . 2 . . . . 1 . 1 . . 1 Weapon 1 | . . . . . . . . . . . . . . . . . . . . . . . . 1 . . . . . Parts Attached 450 | 3 13 6 1 10 12 16 6 18 6 8 1 2 36 4 7 18 11 25 12 11 8 6 13 41 46 12 23 29 46 Power 29 | . 3 2 . 2 1 1 . 2 . 2 . . 2 . . 2 . 4 . . . . . 2 2 . . 1 3 Engine 16 | . 3 2 . 2 1 1 . 1 . 1 . . 2 . . 1 . 1 . . . . . . . . . . 1 Core 4 | . . . . . . . . 1 . 1 . . . . . . . 2 . . . . . . . . . . . Reactor 9 | . . . . . . . . . . . . . . . . 1 . 1 . . . . . 2 2 . . 1 2 Propulsion 59 | . . 1 . 2 2 7 2 5 . . . . 3 1 . 2 . 3 2 2 2 . 4 1 6 2 . . 12 Treads . | . . . . . . . . . . . . . . . . . . . . . . . . . . . . . . Leg . | . . . . . . . . . . . . . . . . . . . . . . . . . . . . . . Wheel . | . . . . . . . . . . . . . . . . . . . . . . . . . . . . . . Hover 59 | . . 1 . 2 2 7 2 5 . . . . 3 1 . 2 . 3 2 2 2 . 4 1 6 2 . . 12 Flight . | . . . . . . . . . . . . . . . . . . . . . . . . . . . . . . Utility 189 | 1 3 3 1 3 6 5 3 4 2 3 . . 17 . 3 8 5 11 5 9 4 3 3 16 21 6 17 12 15 Device 97 | 1 . 1 . 2 1 . 1 . 1 3 . . 5 . 2 3 2 6 3 6 . 1 1 9 15 3 11 10 10 Storage 15 | . 2 . 1 . 2 1 . 1 . . . . 2 . . 1 . . . 1 . . . 1 . . 1 . 2 Processor 6 | . . . . . 1 2 . . . . . . 2 . . . . . 1 . . . . . . . . . . Hackware 22 | . . . . . . 1 1 1 1 . . . 7 . . . 2 3 1 . . 2 . 1 1 1 . . . Protection 46 | . 1 2 . 1 2 1 1 2 . . . . 1 . 1 4 1 2 . 2 4 . 2 5 5 2 3 1 3 Artifact 3 | . . . . . . . . . . . . . . . . . . . . . . . . . . . 2 1 . Weapon 173 | 2 7 . . 3 3 3 1 7 4 3 1 2 14 3 4 6 6 7 5 . 2 3 6 22 17 4 6 16 16 Energy Gun 5 | 1 3 . . . . . . . . . . . . . . . . . . . . . . . 1 . . . . Energy Cannon 31 | . . . . . . . . . . . . . 1 . . . 1 3 1 . . 1 1 4 6 1 2 6 4 Ballistic Gun 60 | 1 2 . . 1 . 1 . 3 1 . . 1 4 1 . 3 3 1 3 . 2 1 3 12 6 1 1 7 2 Ballistic Cannon 17 | . 1 . . 1 1 1 1 3 . . . . 1 . . . . . . . . . . . 2 . . 2 4 Launcher 23 | . . . . 1 . . . . 1 2 . 1 1 1 1 2 2 2 1 . . . . 1 1 . 1 1 4 Special Weapon . | . . . . . . . . . . . . . . . . . . . . . . . . . . . . . . Impact Weapon 8 | . 1 . . . 2 . . . . . . . . . 1 . . . . . . . . . . . 2 . 2 Slashing Weapon 23 | . . . . . . 1 . 1 2 1 1 . 5 1 . 1 . 1 . . . 1 2 5 1 . . . . Piercing Weapon 2 | . . . . . . . . . . . . . . . . . . . . . . . . . . 2 . . . Special Melee Weapon 4 | . . . . . . . . . . . . . 2 . 2 . . . . . . . . . . . . . . Unidentified Prototypes 27 | . . . . . . 1 1 2 . . . . 1 . 1 5 . 1 . . 2 . . 2 5 1 4 1 . Corrupted Parts 1 | . . . . . . . . . . . . . 1 . . . . . . . . . . . . . . . . System Corruption 3 | . . . . . . . . . . . . . 3 . . . . . . . . . . . . . . . . Parts Lost 35 | . 2 . . 6 6 . . 2 . 1 . 1 . . . . . . . . . . 3 5 1 . . . 8 Power 6 | . 1 . . 2 1 . . . . . . . . . . . . . . . . . . 1 . . . . 1 Propulsion 9 | . . . . 1 2 . . 1 . . . . . . . . . . . . . . 1 . . . . . 4 Utility 10 | . . . . 1 2 . . . . 1 . 1 . . . . . . . . . . 1 1 . . . . 3 Weapon 10 | . 1 . . 2 1 . . 1 . . . . . . . . . . . . . . 1 3 1 . . . . Highest Loss Streak 5 | . 1 . . 5 3 . . 1 . 1 . 1 . . . . . . . . . . 2 3 1 . . . 2 To Critical Strikes 1 | . . . . . . . . . . . . . . . . . . . . . . . . 1 . . . . . Average Slot Usage (%) 89 | . 67 73 85 88 83 72 100 99 100 99 100 92 98 93 90 92 93 99 99 94 94 95 99 99 97 100 97 98 92 Engine 5 | . 11 14 14 13 9 3 7 2 7 3 7 7 6 6 6 5 6 4 . . . . . . . . . . 2 Core 1 | . . . . . . . . 4 . 3 . . . . . . . 5 5 5 5 5 5 . . . . . . Reactor 2 | . . . . . . . . . . . . . . . . . . . 5 5 5 5 5 7 8 8 8 8 9 Hover 24 | . . 2 14 21 23 20 38 38 38 38 38 38 33 33 33 33 33 35 31 31 31 31 30 28 27 30 30 30 24 Device 10 | . 5 1 . 8 12 7 7 1 6 6 7 7 8 20 20 14 18 15 18 15 15 13 9 14 17 17 16 20 21 Storage 7 | . 12 14 14 14 9 7 7 7 7 7 7 7 7 6 6 6 6 5 5 5 5 5 5 4 4 4 4 4 7 Processor 5 | . . . . . 7 13 7 7 7 7 7 7 12 6 6 6 6 5 9 10 10 10 10 9 9 8 8 8 8 Hackware 5 | . . . . . . 3 13 19 . . . . 11 6 2 . . 11 7 7 5 7 15 13 12 13 11 6 4 Protection 6 | . 8 12 14 4 6 1 1 2 15 15 15 7 2 . 3 11 7 1 5 2 5 5 5 3 1 4 3 5 4 Ballistic Gun 6 | . 14 14 14 12 1 2 . . 1 . . 3 1 6 . 6 8 . 4 10 10 8 4 5 5 3 2 1 1 Ballistic Cannon 4 | . 1 14 14 12 8 3 7 6 7 7 7 7 2 . . . . . . . . . . . . . . . 1 Slashing Weapon 2 | . . . . . . 7 7 6 5 6 7 . 5 4 6 4 2 4 2 . . . 1 3 3 4 2 . . Naked Turns . | . . . . . . . . . . . . . . . . . . . . . . . . . . . . . . Heaviest Build 115 | 3 14 16 16 19 33 30 30 46 49 47 46 46 51 62 55 69 65 61 60 69 68 68 63 77 79 83 86 91 115 Greatest Support 115 | 3 3 6 6 24 38 46 48 54 52 61 61 61 61 57 57 62 57 66 66 62 62 62 80 81 76 85 105 115 102 Greatest Overweight (x) 5 | . 4 4 2 5 1 1 . . . . . . . 1 . 1 1 1 . 1 1 1 . 1 1 1 1 1 1 Average Overweight (x) . | . 3 3 2 . . . . . . . . . . . . . . . . . 1 . . . . . . . . Largest Inventory Capacity 15 | 5 8 8 8 8 10 10 10 15 15 15 15 15 15 15 15 15 15 15 15 15 15 15 15 15 15 15 15 15 15 Average Capacity 12 | 5 7 8 8 8 8 8 10 12 15 15 15 15 15 15 15 15 15 15 15 15 15 15 15 15 15 15 15 15 15 Most Carried 15 | 4 8 8 8 8 8 10 10 15 15 15 15 15 15 15 15 15 15 15 15 15 15 15 15 15 15 15 15 15 15 Average Carried 12 | 3 6 7 8 7 6 8 9 11 14 14 15 15 14 14 14 15 14 14 14 14 14 14 14 14 14 14 14 14 14 Final Capacity 15 | 5 8 8 8 8 8 10 10 15 15 15 15 15 15 15 15 15 15 15 15 15 15 15 15 15 15 15 15 15 15 Final Carried 15 | 4 8 8 8 8 8 10 10 15 15 15 15 15 15 15 15 15 15 15 15 15 15 15 15 15 15 15 15 14 15 Class Distribution -------------------- 31% | Mutant 14% | Hacker-Mutant 14% | Machinist-Mutant 13% | Hacker-Scout 9% | Scavenger-Mutant 5% | Commander-Mutant Dominant Class ---------------- Mutant | -10/Materials Mutant | -10/Mines Scavenger-Mutant | -10/Exiles Scavenger-Mutant | -9/Mines Scavenger-Mutant | -8/Materials Mutant | -7/Factory Hacker-Mutant | -7/Waste Hacker-Mutant | -7/Factory Mutant | -7/Lower Caves Mutant | -7/Lower Caves Mutant | -7/Data Miner Mutant | -6/Proximity Caves Hacker-Mutant | -6/Factory Machinist-Mutant | -6/Lower Caves Machinist-Mutant | -6/Zion Machinist-Mutant | -6/Deep Caves Machinist-Mutant | -5/Proximity Caves Hacker-Mutant | -5/Factory Machinist-Scout | -4/Factory Commander-Mutant | -4/Extension Commander-Mutant | -4/Cetus Commander-Mutant | -4/Archives Hacker-Scout | -4/Hub_04(d) Hacker-Ninja | -3/Research Hacker-Scout | -3/Testing Hacker-Scout | -2/Research Hacker-Scout | -2/Quarantine Hacker-Scout | -2/Section 7 Alien-Mutant | -1/Access Resources | -11 -10 -10 -10 -9 -8 -7 -7 -7 -7 -7 -7 -6 -6 -6 -6 -6 -5 -5 -4 -4 -4 -4 -4 -3 -3 -2 -2 -2 -1 ----------- Run | Yrd Mat Min Exi Min Mat Fac Was Fac Low Low Dat Pro Fac Low Zio Dee Pro Fac Fac Ext Cet Arc Hub Res Tes Res Qua Sec Acc Matter Collected 10711 | 226 305 334 . 126 21 171 356 362 270 125 . 19 343 282 69 497 347 344 277 783 128 312 138 687 822 244 454 945 1724 Remotely . | . . . . . . . . . . . . . . . . . . . . . . . . . . . . . . Salvage Created 15410 | 65 579 531 . 46 68 165 . 481 83 93 . 51 481 17 . 406 174 382 561 754 66 270 301 1026 2215 1162 982 1415 3036 Parts 730 | 11 36 16 . 12 6 6 . 34 3 6 . 2 13 1 . 28 13 15 24 41 4 17 11 42 119 45 45 52 128 Haulers Intercepted 15 | . 2 . . . . . . 2 . . . . 2 . . . . . 1 1 . . . 2 1 . 1 1 2 Recyclers Shooed 12 | 1 3 1 . . . . . 1 . . . . 1 . . . . . . 1 . . . . 2 . . . 2 Parts Field Recycled . | . . . . . . . . . . . . . . . . . . . . . . . . . . . . . . Retrieved Matter . | . . . . . . . . . . . . . . . . . . . . . . . . . . . . . . Parts Self-Destructed 36 | . . . . . . . . . 1 5 . 5 . 4 . . 21 . . . . . . . . . . . . Prevented 1 | . . . . . . . . . . . . 1 . . . . . . . . . . . . . . . . . Kills | -11 -10 -10 -10 -9 -8 -7 -7 -7 -7 -7 -7 -6 -6 -6 -6 -6 -5 -5 -4 -4 -4 -4 -4 -3 -3 -2 -2 -2 -1 ------- Run | Yrd Mat Min Exi Min Mat Fac Was Fac Low Low Dat Pro Fac Low Zio Dee Pro Fac Fac Ext Cet Arc Hub Res Tes Res Qua Sec Acc Combat Hostiles Destroyed 169 | . 8 4 . 8 1 . . 4 4 7 . 3 . 1 . 8 5 . 5 7 1 . 2 7 22 10 12 11 39 Guns 81 | . 7 2 . 2 . . . . . . . . . . . 1 3 . . 7 1 . 1 7 22 9 7 4 8 Cannons 26 | . 1 2 . 2 1 . . 3 . . . . . . . . . . . . . . 1 . . . . 3 13 AOE 61 | . . . . 4 . . . 1 4 7 . 3 . 1 . 7 2 . 5 . . . . . . . 5 4 18 Classes Destroyed 25 | 1 6 . . . 1 1 . 3 1 . . . . . . 1 1 . . 1 . . 1 . 4 1 1 . 2 Worker 21 | . 2 . . . . . . 2 . . . . 1 . . . . . 2 . . . 1 1 4 1 1 . 6 Builder 13 | . . . . . . . . 2 . . . . 1 . . . . . . . . . . . 5 . 1 1 3 Tunneler 8 | 4 . 1 . . . . . 1 . . . . . . . . . . 1 . . . . . . . . . 1 Hauler 15 | . 2 . . . . . . 2 . . . . 2 . . . . . 1 1 . . . 2 1 . 1 1 2 Recycler 28 | . 2 6 . . . 2 . 1 . . . . 2 . . . . 3 2 . . . 1 1 1 . 1 3 3 Mechanic 5 | . . . . . . . . 1 . . . . . . . . . . . . . . . . 1 . . 1 2 Operator 17 | . . . . . . 1 . . . . . . 1 . . . . . . 1 . 8 1 1 1 2 1 . . Drone 2 | . . . . . . . . . . . . . . . . . 2 . . . . . . . . . . . . Watcher 23 | . 3 . . . 1 . . 1 . . . . . . . . . . 3 1 . . . 1 2 4 2 5 . Swarmer 53 | . 3 3 . 8 . . . . 4 7 . 3 . 1 . . 2 . 5 . . . . . . . 5 . 12 Saboteur 4 | . . . . . . . . . . . . . . . . . . . . . . . . . 1 . . 2 1 Grunt 46 | . 5 1 . . . . . 3 . . . . . . . . . . . 3 . . 1 4 7 5 5 1 11 Brawler 5 | . . . . . . . . . . . . . . . . . . . . . . . . . 2 1 . . 2 Duelist 2 | . . . . . . . . . . . . . . . . . . . . . . . 1 . . . . 1 . Protector 3 | . . . . . . . . . . . . . . . . . . . . . . . . . . . 1 . 2 Researcher 2 | . . . . . . . . . . . . . . . . . . . . . . . . . 1 . . 1 . Sentry 14 | . . . . . 1 . . . . . . . . . . . . . . 2 . . . 2 5 3 . 1 . Specialist 3 | . . . . . . . . . . . . . . . . . . . . . . . . . 2 . 1 . . Hunter 9 | . . . . . . . . . . . . . . . . . . . . 2 . . . 1 3 . . . 3 Programmer 15 | . . . . . . . . 1 . . . . . . . . 1 . . . . . . . 2 . . 6 5 Behemoth 1 | . . . . . . . . . . . . . . . . . . . . . . . . . . 1 . . . Cetus Guard 1 | . . . . . . . . . . . . . . . . . . . . . 1 . . . . . . . . Striker 2 | . . . . . . . . . . . . . . . . . . . . . . . . . . . . . 2 Executioner 1 | . . . . . . . . . . . . . . . . . . . . . . . . . . . . . 1 Z-Technician 5 | . . . . . . . . . . . . . . . . 5 . . . . . . . . . . . . . Z-Light 8 | . . . . . . . . . . . . . . . . 8 . . . . . . . . . . . . . Packrat 1 | . . . . . . . . . . . . . . . . . 1 . . . . . . . . . . . . Samaritan 1 | . . . . . . . . . 1 . . . . . . . . . . . . . . . . . . . . Best Kill Streak 36 | 4 2 3 . 4 1 1 . 4 4 4 . 3 2 1 . 7 2 1 8 3 1 5 2 7 8 4 6 8 36 Combat Bots Only 28 | . 2 3 . 4 1 . . 3 4 4 . 3 . 1 . 7 2 . 5 2 1 . 2 7 5 4 5 4 28 Max Kills in Single Turn 6 | 1 1 1 . 3 1 1 . 3 2 2 . 3 1 1 . 4 1 1 5 1 1 1 2 2 2 2 3 6 4 Gunslinging 1 | . . . . . . . . . . . . . . . . . . . . . . . . 1 . . . . . Exploded 4 | . . . . 3 . . . 1 2 2 . 3 . 1 . 3 1 . 3 . . . . . . . 3 4 4 Melee . | . . . . . . . . . . . . . . . . . . . . . . . . . . . . . . Uniques/NPCs Destroyed 1 | . . . . . . . . . . . . . . . . 1 . . . . . . . . . . . . . Z-Imprinter (-6/Deep Caves) Combat | -11 -10 -10 -10 -9 -8 -7 -7 -7 -7 -7 -7 -6 -6 -6 -6 -6 -5 -5 -4 -4 -4 -4 -4 -3 -3 -2 -2 -2 -1 -------- Run | Yrd Mat Min Exi Min Mat Fac Was Fac Low Low Dat Pro Fac Low Zio Dee Pro Fac Fac Ext Cet Arc Hub Res Tes Res Qua Sec Acc Hostile Shots Fired 1272 | . 49 7 . 54 55 9 . 119 12 14 . 16 45 . . 7 5 44 13 33 3 . 44 116 59 75 30 22 441 Missed 545 | . 11 3 . 15 17 4 . 52 5 6 . 7 25 . . 4 4 15 6 15 . . 10 37 36 43 20 8 202 Damage Taken 11505 | . 503 30 . 481 829 38 . 657 148 177 . 180 157 71 . 120 18 304 113 453 79 . 1043 1761 295 648 314 430 2656 Core 1109 | . 135 . . 66 93 11 . 68 43 20 . . 45 . . 29 . 15 15 22 26 . 18 76 4 31 . 127 265 Absorbed by Shields 824 | . . . . . . . . . . . . . . . . . . . . 12 . . . . . . . . 812 Redirected to Shielding 196 | . 15 . . . . . . 10 8 7 . 51 3 . . . 11 23 . . . . . . . . . . 68 Ignored by Resistances 2852 | . . . . . . . . . . . . . . . . . . . . . . . . . 176 277 . 41 2358 Regen/Repaired (Parts) 1872 | . . . . . . . 138 136 . . . . 73 . 369 . . . . . . . . . 429 150 259 92 226 Core Remaining (%) 80 | 100 . . . 19 83 . . . . . . 79 . . . . 91 98 . . . . 92 . 93 . . 68 77 Volleys Fired 769 | 25 56 40 . 16 6 12 6 52 4 5 . 7 25 3 . 16 17 7 24 61 5 28 27 34 66 36 55 64 72 Largest 3 | 2 2 2 . 2 2 1 1 2 1 1 . 2 2 1 . 2 2 1 2 2 2 2 2 3 2 2 1 1 2 Hottest 240 | 60 70 55 . 55 92 57 57 76 48 30 . 76 90 43 . 66 90 90 90 66 70 70 125 148 113 170 120 120 240 Shots Fired 1086 | 47 112 80 . 29 7 12 6 55 4 5 . 9 27 3 . 22 20 7 41 122 10 56 38 73 68 37 55 64 77 Gun 733 | 47 102 40 . 13 . 3 . 3 . . . 2 10 . . 12 13 . 34 122 10 56 17 57 57 31 37 40 27 Cannon 298 | . 10 40 . 13 7 9 6 52 1 . . 6 17 . . . 5 7 5 . . . 21 16 10 6 15 22 30 Launcher 55 | . . . . 3 . . . . 3 5 . 1 . 3 . 10 2 . 2 . . . . . 1 . 3 2 20 Special . | . . . . . . . . . . . . . . . . . . . . . . . . . . . . . . Kinetic 845 | 25 66 80 . 26 7 12 6 55 1 . . 8 16 . . 12 13 . 34 122 10 56 17 57 57 31 37 44 53 Thermal 186 | 22 46 . . . . . . . . . . . 11 . . . 5 7 5 . . . 21 16 10 6 15 18 4 Explosive 49 | . . . . 3 . . . . 3 5 . 1 . 3 . 10 2 . 2 . . . . . 1 . 3 2 14 Electromagnetic 6 | . . . . . . . . . . . . . . . . . . . . . . . . . . . . . 6 Robot Hit Streak 45 | 6 10 6 . 5 3 5 1 5 1 . . 2 7 . . 3 8 2 10 19 10 13 9 13 14 18 16 45 10 Robot Miss Streak 11 | 4 4 4 . 4 2 3 5 10 2 1 . 1 2 . . 3 2 . 2 2 1 2 4 4 3 3 3 8 11 Penetration Max 4 | . . . . . . . . . . . . . . . . . . . 1 1 2 1 1 4 3 1 1 1 2 Secondary Targets 3 | . . . . . . . . . . . . . . . . . . . . . . . . 3 . . . . . Max Gunslinging Chain 1 | . . . . . . . . . . . . . . . . . . . . . . . . 1 . . . . . Shots Hit Robots 728 | 16 72 40 . 11 5 10 1 36 3 . . 3 30 . 3 12 10 5 37 93 8 39 16 53 61 34 34 44 52 Core Hits 587 | 8 31 23 . 6 3 3 . 16 7 9 . 4 9 2 . 20 6 3 24 35 2 18 8 26 62 23 24 83 132 Critical Kills 124 | . 1 . . . 2 . . 3 . . . . . . . 1 4 . 2 10 1 2 1 6 30 15 11 10 25 Critical Parts Destroyed 173 | . . . . . 1 1 . 4 . . . . . . . . 1 . 6 22 1 3 2 8 37 15 9 20 43 Critical Strikes 339 | . 3 2 . . 4 1 2 11 . . . 1 . . . 3 5 . 9 35 3 5 4 15 70 33 20 37 76 Burn 1 | . 1 . . . . . . . . . . . . . . . . . . . . . . . . . . . . Destroy 329 | . 1 . . . 3 1 2 10 . . . . . . . 3 5 . 9 35 3 5 3 15 70 32 20 36 76 Blast 5 | . 1 2 . . . . . 1 . . . 1 . . . . . . . . . . . . . . . . . Smash 2 | . . . . . 1 . . . . . . . . . . . . . . . . . . . . . . 1 . Sever 1 | . . . . . . . . . . . . . . . . . . . . . . . 1 . . . . . . Impale 1 | . . . . . . . . . . . . . . . . . . . . . . . . . . 1 . . . Melee Attacks 379 | . 10 . . . 11 15 . 41 10 4 . 1 42 2 9 5 . 35 13 . . . 12 36 30 38 30 26 9 Impact 69 | . 10 . . . 11 . . . . . . . . . 4 . . . . . . . . . . . 9 26 9 Slashing 298 | . . . . . . 15 . 41 10 4 . 1 42 2 2 4 . 35 13 . . . 12 36 30 31 20 . . Piercing 8 | . . . . . . . . . . . . . . . . . . . . . . . . . . 7 1 . . Sneak Attacks 54 | . . . . . . 5 . 9 2 . . . 9 . 3 . . 3 2 . . . 2 5 5 1 3 3 2 Combat Hostiles . | . . . . . . . . . . . . . . . . . . . . . . . . . . . . . . Follow-up Attacks 1 | . . . . . . . . . . . . . . . . . . . . . . . . . . 1 . . . Damage Inflicted 29776 | 155 866 626 . 426 214 478 98 1732 357 496 . 226 1227 305 . 3142 194 259 1397 635 120 1019 665 1885 1634 785 1301 4339 5195 Guns 7050 | 155 737 279 . 64 . 16 . 47 . . . 36 131 . . 41 60 . 219 635 120 1019 274 1208 843 284 204 333 345 Cannons 2874 | . 129 347 . 94 154 60 98 595 28 . . 25 216 . . . . 31 112 . . . 175 137 . . . 162 511 Explosions 13739 | . . . . 268 . . . 389 200 496 . 165 . 305 . 2834 134 . 853 . . . . . 67 . 680 3205 4143 Melee 6107 | . . . . . 54 402 . 701 129 . . . 880 . . 267 . 228 213 . . . 216 540 724 501 417 639 196 Ramming 6 | . . . . . 6 . . . . . . . . . . . . . . . . . . . . . . . . Kinetic 8779 | 68 534 626 . 158 154 76 98 642 28 . . 61 157 . . 41 60 . 219 635 120 1019 274 1208 843 284 204 414 856 Thermal 3547 | 87 332 . . . . . . 389 . . . . 190 . . 1730 . 31 112 . . . 175 137 . . . 81 283 Explosive 10839 | . . . . 268 . . . . 200 496 . 165 . 305 . 1104 134 . 853 . . . . . 67 . 680 3205 3362 Electromagnetic 498 | . . . . . . . . . . . . . . . . . . . . . . . . . . . . . 498 Impact 889 | . . . . . 54 . . . . . . . . . . . . . . . . . . . . . . 639 196 Slashing 5051 | . . . . . . 402 . 701 129 . . . 880 . . 267 . 228 213 . . . 216 540 724 334 417 . . Piercing 167 | . . . . . . . . . . . . . . . . . . . . . . . . . . 167 . . . Highest Corruption 8 | . . . . . 5 . . 1 1 1 . . 3 3 3 . . . . . . . 8 . . . 5 5 . Average Corruption 2 | . . . . . 4 . . 1 1 1 . . 3 3 3 . . . . . . . 4 . . . 4 5 . Corruption Purged 1 | . . . . . . . . . . 1 . . . . . . . . . . . . . . . . . . . Corruption Blocked . | . . . . . . . . . . . . . . . . . . . . . . . . . . . . . . Effects 24 | . . . . . 1 . . . 3 4 . . 4 3 . . . . . . . . 1 . . . 8 . . Message Errors 4 | . . . . . 1 . . . . 1 . . . 1 . . . . . . . . . . . . 1 . . Matter Fused 2 | . . . . . . . . . . . . . 1 . . . . . . . . . . . . . 1 . . Heat Flow Errors 4 | . . . . . . . . . . . . . 2 . . . . . . . . . . . . . 2 . . Energy Discharges 6 | . . . . . . . . . 1 2 . . 1 1 . . . . . . . . . . . . 1 . . Parts Fused 1 | . . . . . . . . . . 1 . . . . . . . . . . . . . . . . . . . Data Loss (minor) 4 | . . . . . . . . . 1 . . . . 1 . . . . . . . . 1 . . . 1 . . Data Loss (major) 2 | . . . . . . . . . . . . . . . . . . . . . . . . . . . 2 . . Alerts 1 | . . . . . . . . . 1 . . . . . . . . . . . . . . . . . . . . Overload Shots . | . . . . . . . . . . . . . . . . . . . . . . . . . . . . . . Overflow Damage 2175 | . . 2 . 57 . 115 . 144 36 7 . . 147 . . 288 . 3 119 . . . . 32 189 85 213 490 248 Projectiles 88 | . . 2 . 10 . . . 20 . . . . 37 . . . . . 19 . . . . . . . . . . Explosions 653 | . . . . 47 . . . 42 2 7 . . . . . 278 . . 74 . . . . . . . . 81 122 Melee 1434 | . . . . . . 115 . 82 34 . . . 110 . . 10 . 3 26 . . . . 32 189 85 213 409 126 Knockbacks 29 | . 2 6 . 2 1 . . 1 . . . . . . . . . . . . . . . . . . . 4 13 Impact 5 | . . . . . . . . . . . . . . . . . . . . . . . . . . . . 3 2 Kinetic 24 | . 2 6 . 2 1 . . 1 . . . . . . . . . . . . . . . . . . . 1 11 Secondary . | . . . . . . . . . . . . . . . . . . . . . . . . . . . . . . Self-Inflicted Damage 208 | . . . . 37 6 . . . 48 59 . . . 58 . . . . . . . . . . . . . . . Shots 6 | . . . . 2 . . . . 1 2 . . . 1 . . . . . . . . . . . . . . . Rammed . | . . . . . . . . . . . . . . . . . . . . . . . . . . . . . . Targets Rammed . | . . . . . . . . . . . . . . . . . . . . . . . . . . . . . . Kicked . | . . . . . . . . . . . . . . . . . . . . . . . . . . . . . . Crushed . | . . . . . . . . . . . . . . . . . . . . . . . . . . . . . . Highest Temperature 266 | 20 164 12 . 18 89 9 12 77 8 . . 37 135 . . . . . 1 . . . 32 253 80 81 266 201 198 Average Temperature 64 | 9 33 4 . 6 33 4 7 23 4 . . 22 45 . . . . . 1 . . . 10 76 33 33 68 75 158 Received Heat Transfer 1870 | . 234 . . 117 126 12 . 135 9 . . 64 48 . . 36 . 9 . 55 . . 90 233 150 126 . 54 372 Effects 3 | . . . . . . . . . . . . . . . . . . . . . . . . . . . 3 . . Interference 3 | . . . . . . . . . . . . . . . . . . . . . . . . . . . 3 . . Siege Activations . | . . . . . . . . . . . . . . . . . . . . . . . . . . . . . . Robots Corrupted . | . . . . . . . . . . . . . . . . . . . . . . . . . . . . . . Combat Hostiles . | . . . . . . . . . . . . . . . . . . . . . . . . . . . . . . Parts Fried 8 | . . . . . . . . . . . . . . . . . . . . . . . . . . . . 4 4 Impact Corruptions 12 | . . . . . . . . . . . . . . . . . . . . . . . . . . . . 8 4 Robots Melted . | . . . . . . . . . . . . . . . . . . . . . . . . . . . . . . Combat Hostiles . | . . . . . . . . . . . . . . . . . . . . . . . . . . . . . . Parts Melted 4 | . 2 . . . . . . 1 . . . . . . . . . . . . . . . . 1 . . . . Heat Transferred 2731 | 200 1013 . . . . . . 250 . . . . 300 . . . . 50 111 . . . 185 148 . . . 74 400 Parts Sabotaged 2 | . . . . . . . . . . . . . . . . . . . . . . . . . . . . . 2 Parts Stolen . | . . . . . . . . . . . . . . . . . . . . . . . . . . . . . . Parts Stripped . | . . . . . . . . . . . . . . . . . . . . . . . . . . . . . . Power Chain Reactions 3 | . . . . . . . . . . . . . . . . . . . . . . . . . . . . . 3 Alert | -11 -10 -10 -10 -9 -8 -7 -7 -7 -7 -7 -7 -6 -6 -6 -6 -6 -5 -5 -4 -4 -4 -4 -4 -3 -3 -2 -2 -2 -1 ------- Run | Yrd Mat Min Exi Min Mat Fac Was Fac Low Low Dat Pro Fac Low Zio Dee Pro Fac Fac Ext Cet Arc Hub Res Tes Res Qua Sec Acc Peak Influence 5027 | 20 163 85 . 200 249 157 87 1072 . . . . 358 . . . . 221 324 691 718 574 456 665 1006 715 519 1877 5027 Initial 1136 | . 13 . . . 5 112 21 31 . . . . 217 . . . . 61 37 158 240 287 200 239 363 504 319 98 1136 Average 326 | 9 38 8 . 52 113 100 49 575 . . . . 196 . . . . 59 156 292 543 510 284 337 598 385 164 193 3728 Maximum Alert Level 5 | . . . . 1 1 . . 3 . . . . 1 . . . . 1 1 2 3 2 2 2 3 3 2 5 5 Low Security (%) 59 | 100 100 100 . 99 75 100 100 11 . . . . 38 . . . . 97 59 33 . . . 9 11 12 68 59 . Level 1 19 | . . . . . 24 . . 17 . . . . 61 . . . . 2 40 47 10 6 94 63 17 37 18 37 . Level 2 11 | . . . . . . . . 36 . . . . . . . . . . . 19 53 93 5 27 23 47 13 . . Level 3 5 | . . . . . . . . 34 . . . . . . . . . . . . 36 . . . 48 1 . . . Level 4 . | . . . . . . . . . . . . . . . . . . . . . . . . . . . . . 2 Level 5 . | . . . . . . . . . . . . . . . . . . . . . . . . . . . . . . High Security . | . . . . . . . . . . . . . . . . . . . . . . . . . . . . . . Max Security 3 | . . . . . . . . . . . . . . . . . . . . . . . . . . . . 3 97 Squads Dispatched 104 | . . . . . 3 4 . 11 . . . 1 4 . . . . 2 . 2 1 . 4 5 12 3 3 14 35 Investigation 23 | . . . . . . 1 . 5 . . . . 3 . . . . 1 . . 1 . 3 4 2 2 . 1 . Extermination 8 | . . . . . . 1 . 3 . . . . . . . . . . . . . . . . 2 . 1 1 . Reinforcement 28 | . . . . . 3 2 . 2 . . . . 1 . . . . 1 . 2 . . . 1 4 1 2 4 5 Assault 43 | . . . . . . . . 1 . . . 1 . . . . . . . . . . 1 . 4 . . 6 30 Garrison 2 | . . . . . . . . . . . . . . . . . . . . . . . . . . . . 2 . Intercept . | . . . . . . . . . . . . . . . . . . . . . . . . . . . . . . Searches Triggered . | . . . . . . . . . . . . . . . . . . . . . . . . . . . . . . Construction Impeded 4 | . . . . . . . . 1 . . . . . . . . . . . . . . . . . . 1 . 2 Haulers Reinforced 5 | . . . . . . . . 1 . . . . 1 . . . . . . . . . . . 1 1 . . 1 Active Scanning Responses . | . . . . . . . . . . . . . . . . . . . . . . . . . . . . . . Cargo Convoy Interrupts . | . . . . . . . . . . . . . . . . . . . . . . . . . . . . . . Stealth | -11 -10 -10 -10 -9 -8 -7 -7 -7 -7 -7 -7 -6 -6 -6 -6 -6 -5 -5 -4 -4 -4 -4 -4 -3 -3 -2 -2 -2 -1 --------- Run | Yrd Mat Min Exi Min Mat Fac Was Fac Low Low Dat Pro Fac Low Zio Dee Pro Fac Fac Ext Cet Arc Hub Res Tes Res Qua Sec Acc Distress Signals 28 | . . . . . 2 . . . . . . . . . . . 1 1 . 2 2 . 2 5 5 3 1 3 1 Communications Jammed . | . . . . . . . . . . . . . . . . . . . . . . . . . . . . . . Distress Signals . | . . . . . . . . . . . . . . . . . . . . . . . . . . . . . . Times Spotted 644 | . 12 4 . 11 22 6 1 50 11 8 . 19 18 3 . 10 11 11 9 34 10 11 16 29 57 28 25 69 159 Peak Tracking Total 51 | . 2 3 . 6 11 2 1 9 4 4 . 15 5 3 . 5 5 4 8 5 5 1 12 9 10 8 5 51 32 Tactical Retreats 83 | . . 2 . 3 4 . . 12 2 . . 9 7 1 . . 1 5 1 . . . 1 6 5 4 4 4 12 Traps | -11 -10 -10 -10 -9 -8 -7 -7 -7 -7 -7 -7 -6 -6 -6 -6 -6 -5 -5 -4 -4 -4 -4 -4 -3 -3 -2 -2 -2 -1 ------- Run | Yrd Mat Min Exi Min Mat Fac Was Fac Low Low Dat Pro Fac Low Zio Dee Pro Fac Fac Ext Cet Arc Hub Res Tes Res Qua Sec Acc Traps Triggered 15 | . 1 . . . . 1 . 1 . . . . . . . . . 1 . 5 . . 1 3 . . . . 2 Indirectly . | . . . . . . . . . . . . . . . . . . . . . . . . . . . . . . Trap Hack Attempts 28 | . . . . . . . . . . . . . 28 . . . . . . . . . . . . . . . . Triggered . | . . . . . . . . . . . . . . . . . . . . . . . . . . . . . . Disarmed 7 | . . . . . . . . . . . . . . . . . . . . . . . . . . 6 1 . . Reprogrammed 25 | . . . . . . . . 6 . . . . 3 . . . . 4 . . . . . . 5 . 1 6 . Reused 8 | . . . . . . . . 2 . . . . 2 . . . . . . . . . . . 3 . . 1 . Traps Extracted . | . . . . . . . . . . . . . . . . . . . . . . . . . . . . . . Installed . | . . . . . . . . . . . . . . . . . . . . . . . . . . . . . . Triggered 10 | . . . . . . . . 2 . . . 2 2 . . . . . . . . . . . 3 . . 1 . Machines | -11 -10 -10 -10 -9 -8 -7 -7 -7 -7 -7 -7 -6 -6 -6 -6 -6 -5 -5 -4 -4 -4 -4 -4 -3 -3 -2 -2 -2 -1 ---------- Run | Yrd Mat Min Exi Min Mat Fac Was Fac Low Low Dat Pro Fac Low Zio Dee Pro Fac Fac Ext Cet Arc Hub Res Tes Res Qua Sec Acc Machines Disabled 57 | . . 1 . . . . . 3 . . . . . . . 2 . 2 . . 3 3 2 1 9 . 14 12 5 Max in Single Turn 4 | . . 1 . . . . . 2 . . . . . . . 1 . . . . . . 1 1 4 . 2 1 1 Garrison Access 9 | . . . . . . . . . . . . . 2 . . . . 1 1 . . . 1 2 . 1 1 . . Network Hub 3 | . . . . . . . . . . . . . . . . . . . . . . . 3 . . . . . . Energy Cycler 1 | . . . . . . . . . . . . . . . . . . . . . . . . . . . . . 1 Machines Repaired . | . . . . . . . . . . . . . . . . . . . . . . . . . . . . . . Machines Dismantled . | . . . . . . . . . . . . . . . . . . . . . . . . . . . . . . Machines Sabotaged 3 | . . . . . . . . . . . . . . . . . . . . . . . 3 . . . . . . Overloaded Fab Kills . | . . . . . . . . . . . . . . . . . . . . . . . . . . . . . . Hacking | -11 -10 -10 -10 -9 -8 -7 -7 -7 -7 -7 -7 -6 -6 -6 -6 -6 -5 -5 -4 -4 -4 -4 -4 -3 -3 -2 -2 -2 -1 --------- Run | Yrd Mat Min Exi Min Mat Fac Was Fac Low Low Dat Pro Fac Low Zio Dee Pro Fac Fac Ext Cet Arc Hub Res Tes Res Qua Sec Acc Machines Accessed 141 | . 9 . 1 . 1 8 . 17 . . 4 . 18 1 . . . 14 3 6 1 . 4 7 12 13 13 9 . Terminals 82 | . 7 . . . 1 1 . 8 . . . . 8 . . . . 8 1 5 1 . 4 2 9 8 10 9 . Fabricators 16 | . . . . . . . . 5 . . . . 3 . . . . 4 . . . . . 1 1 2 . . . Repair Stations 9 | . . . . . . 2 . 2 . . . . 2 . . . . . . . . . . . 2 . 1 . . Recycling Units 15 | . 2 . . . . 2 . 2 . . . . 3 . . . . 1 1 1 . . . 1 . 2 . . . Scanalyzers 5 | . . . . . . 2 . . . . . . . . . . . . . . . . . 2 . . 1 . . Garrison Access 8 | . . . . . . 1 . . . . . . 2 . . . . 1 1 . . . . 1 . 1 1 . . Total Hacks 581 | . 23 . 1 . 4 21 . 69 . . 29 . 66 1 . . . 50 4 15 3 . 12 39 64 68 68 44 . Successful 351 | . 8 . 1 . 3 10 . 29 . . 29 . 40 1 . . . 30 3 10 1 . 11 19 38 43 47 28 . Failed 230 | . 15 . . . 1 11 . 40 . . . . 26 . . . . 20 1 5 2 . 1 20 26 25 21 16 . Catastrophic 42 | . 5 . . . 1 1 . 11 . . . . 5 . . . . 2 . 1 . . . 3 4 6 3 . . Database Lockouts . | . . . . . . . . . . . . . . . . . . . . . . . . . . . . . . Manual 206 | . 13 . . . 2 3 . 20 . . . . 32 . 2 . . 23 2 8 1 . 6 14 6 30 23 21 . Terminals 386 | . 18 . . . 4 2 . 38 . . . . 35 . . . . 30 2 14 3 . 12 22 42 57 63 44 . Fabricators 68 | . . . . . . . . 15 . . . . 19 . . . . 18 . . . . . 7 5 4 . . . Repair Stations 38 | . . . . . . 5 . 10 . . . . 4 . . . . . . . . . . . 17 . 2 . . Recycling Units 33 | . 5 . . . . 6 . 6 . . . . 5 . . . . 1 1 1 . . . 2 . 6 . . . Scanalyzers 15 | . . . . . . 6 . . . . . . . . . . . . . . . . . 7 . . 2 . . Garrison Access 10 | . . . . . . 2 . . . . . . 3 . . . . 1 1 . . . . 1 . 1 1 . . Terminal Hacks 206 | . 6 . 1 . 3 . . 13 . . 29 . 16 1 . . . 10 1 7 1 . 7 7 19 29 33 23 . Record 16 | . . . 1 . 1 . . . . . 11 . . 1 . . . . . . . . . . . . 1 1 . Part Schematic 19 | . 1 . . . . . . . . . 11 . 2 . . . . . . . . . . . 1 2 2 . . Robot Schematic 4 | . . . . . . . . . . . 4 . . . . . . . . . . . . . . . . . . Robot Analysis 11 | . 4 . . . . . . . . . . . . . . . . 1 . 1 . . . 2 . 1 2 . . Prototype ID Bank 19 | . 1 . . . 1 . . 1 . . 3 . 3 . . . . 1 . 1 . . 1 . . 4 1 2 . Open Door 5 | . . . . . . . . . . . . . . . . . . . . . 1 . . . 1 1 1 1 . Level Access Points 5 | . . . . . . . . . . . . . . . . . . . . . . . 1 . 1 1 1 1 . Branch Access Points 6 | . . . . . . . . 1 . . . . 1 . . . . 1 1 . . . . 1 . 1 . . . Emergency Access Points 10 | . . . . . . . . 1 . . . . 2 . . . . 1 . . . . 2 . . 1 3 . . Machine Index 3 | . . . . . . . . . . . . . . . . . . . . . . . . . 1 1 1 . . Terminal Index 2 | . . . . . . . . 1 . . . . . . . . . . . . . . 1 . . . . . . Fabricator Index 2 | . . . . . . . . 1 . . . . 1 . . . . . . . . . . . . . . . . Repair Station Index 1 | . . . . . . . . . . . . . . . . . . . . . . . . . . . . 1 . Scanalyzer Index 1 | . . . . . . . . 1 . . . . . . . . . . . . . . . . . . . . . Alert Level 7 | . . . . . . . . . . . . . . . . . . . . . . . 1 . . 3 2 1 . Unreport Threat 22 | . . . . . . . . . . . . . 1 . . . . 1 . 2 . . . . 4 3 7 4 . Locate Traps 5 | . . . . . . . . 1 . . . . 1 . . . . . . . . . . . 1 . 2 . . Disarm Traps 2 | . . . . . . . . . . . . . . . . . . . . . . . . . . 1 1 . . Reprogram Traps 6 | . . . . . . . . 1 . . . . . . . . . 1 . . . . . . 2 . 1 1 . Dispatch Records 1 | . . . . . . . . . . . . . 1 . . . . . . . . . . . . . . . . Maintenance Status 2 | . . . . . . . . . . . . . . . . . . . . . . . . 1 . . . 1 . Security Status 2 | . . . . . . . . 1 . . . . . . . . . . . . . . . . . 1 . . . Surveillance Status 1 | . . . . . . . . . . . . . . . . . . . . . . . . . . . . 1 . Patrol Status 4 | . . . . . . . . 1 . . . . . . . . . . . . . . . . . 1 . 2 . Recall Investigation 2 | . . . . . . . . 1 . . . . 1 . . . . . . . . . . . . . . . . Recall Reinforcements 3 | . . . . . . . . . . . . . . . . . . . . . . . . . 2 1 . . . Recall Assault 1 | . . . . . . . . . . . . . . . . . . . . . . . . . 1 . . . . Hauler Manifests 10 | . . . . . . . . 1 . . . . . . . . . 1 . 1 . . 1 1 1 1 2 1 . Registered Components 3 | . . . . . . . . . . . . . . . . . . . . . . . . 1 . 1 . 1 . Registered Prototypes 2 | . . . . . . . . . . . . . . . . . . . . . . . . . . 1 1 . . Zone Layout 27 | . . . . . 1 . . 1 . . . . 3 . . . . 3 . 2 . . . 1 3 4 5 4 . Protovariant Controls 1 | . . . . . . . . . . . . . . . . . . . . . . . . . 1 . . . . Activate Exoskeleton 1 | . . . . . . . . . . . . . . . . . . . . . . . . . . . . 1 . Fabricator Hacks 32 | . . . . . . . . 6 . . . . 11 . . . . 8 . . . . . 2 3 2 . . . Network Status 2 | . . . . . . . . . . . . . 2 . . . . . . . . . . . . . . . . Load Schematic 17 | . . . . . . . . 4 . . . . 5 . . . . 4 . . . . . 1 1 2 . . . Build 13 | . . . . . . . . 2 . . . . 4 . . . . 4 . . . . . 1 2 . . . . Repair Station Hacks 26 | . . . . . . 2 . 6 . . . . 3 . . . . . . . . . . . 13 . 2 . . Scan Component 15 | . . . . . . 1 . 4 . . . . 2 . . . . . . . . . . . 7 . 1 . . Repair 10 | . . . . . . . . 2 . . . . 1 . . . . . . . . . . . 6 . 1 . . Refit 1 | . . . . . . 1 . . . . . . . . . . . . . . . . . . . . . . . Recycling Unit Hacks 12 | . 1 . . . . 1 . 1 . . . . 2 . . . . 1 1 1 . . . 1 . 3 . . . Retrieve Components 12 | . 1 . . . . 1 . 1 . . . . 2 . . . . 1 1 1 . . . 1 . 3 . . . Scanalyzer 13 | . . . . . . 5 . . . . . . . . . . . . . . . . . 6 . . 2 . . Insert Component 8 | . . . . . . 2 . . . . . . . . . . . . . . . . . 4 . . 2 . . Analyze 5 | . . . . . . 3 . . . . . . . . . . . . . . . . . 2 . . . . . Garrison Access Hacks 7 | . . . . . . . . . . . . . 2 . . . . 1 1 . . . . 1 . 1 1 . . Seal Access 7 | . . . . . . . . . . . . . 2 . . . . 1 1 . . . . 1 . 1 1 . . Unauthorized Hacks 55 | . 1 . . . . 2 . 3 . . . . 6 . . . . 10 . 2 . . 4 2 3 8 9 5 . Terminals 37 | . . . . . . . . 1 . . . . 3 . . . . 6 . 2 . . 4 1 2 4 9 5 . Track 7 | . . . . . . . . . . . . . 1 . . . . 1 . . . . . . . 1 3 1 . Assimilate 10 | . . . . . . . . . . . . . . . . . . 1 . . . . . 1 2 . 3 3 . Botnet 12 | . . . . . . . . 1 . . . . 1 . . . . 2 . 2 . . 1 . . 2 2 1 . Operators 5 | . . . . . . . . . . . . . 1 . . . . 2 . . . . . . . 1 1 . . Sabotage 3 | . . . . . . . . . . . . . . . . . . . . . . . 3 . . . . . . Fabricators 13 | . . . . . . . . 2 . . . . 3 . . . . 4 . . . . . 1 1 2 . . . Prioritize 7 | . . . . . . . . 1 . . . . 2 . . . . 2 . . . . . 1 1 . . . . Liberate 1 | . . . . . . . . . . . . . . . . . . 1 . . . . . . . . . . . Recompile 5 | . . . . . . . . 1 . . . . 1 . . . . 1 . . . . . . . 2 . . . Repair Stations . | . . . . . . . . . . . . . . . . . . . . . . . . . . . . . . Recycling Units 5 | . 1 . . . . 2 . . . . . . . . . . . . . . . . . . . 2 . . . Reject 3 | . 1 . . . . 1 . . . . . . . . . . . . . . . . . . . 1 . . . Recyclers 2 | . . . . . . 1 . . . . . . . . . . . . . . . . . . . 1 . . . Scanalyzers . | . . . . . . . . . . . . . . . . . . . . . . . . . . . . . . Garrison Access . | . . . . . . . . . . . . . . . . . . . . . . . . . . . . . . Data Cores Recovered 5 | . . . . . . . . . . . . . 1 . . . . . . . . . 1 1 . 1 1 . . Used 4 | . . . . . . . . . . . . . 1 . . . . . . . . . 1 1 . 1 . . . Hacking Detections 101 | . 9 . . . 1 7 . 14 . . . . 14 . . . . 12 2 6 2 . 2 5 8 7 7 5 . Full Trace Events 11 | . 1 . . . . 1 . 4 . . . . 2 . . . . . . . 1 . . 1 1 . . . . Feedback Events . | . . . . . . . . . . . . . . . . . . . . . . . . . . . . . . Feedback Blocked . | . . . . . . . . . . . . . . . . . . . . . . . . . . . . . . Robot Schematics Acquired 9 | . . . . . . . . . . . 4 . . . 2 . . . . . . . . . 3 . . . . Robots Built . | . . . . . . . . . . . . . . . . . . . . . . . . . . . . . . Authchips . | . . . . . . . . . . . . . . . . . . . . . . . . . . . . . . Time . | . . . . . . . . . . . . . . . . . . . . . . . . . . . . . . Total Robot Build Rating . | . . . . . . . . . . . . . . . . . . . . . . . . . . . . . . Part Schematics Acquired 38 | . 1 . . . . 1 . . . . 11 . 2 . 14 . . . . . . . . 1 4 2 2 . . Parts Built 17 | . . . . . . . . 4 . . . . 4 . . . . 6 . . . . . 1 2 . . . . Authchips 7 | . . . . . . . . . . . . . 4 . . . . 3 . . . . . . . . . . . Time 1010 | . . . . . . . . 94 . . . . 312 . . . . 229 . . . . . 51 324 . . . . Total Part Build Rating 103 | . . . . . . . . 20 . . . . 21 . . . . 37 . . . . . 8 17 . . . . Parts Repaired 10 | . . . . . . . . 2 . . . . 1 . . . . . . . . . . . 6 . 1 . . Time 463 | . . . . . . . . 120 . . . . 70 . . . . . . . . . . . 219 . 54 . . Parts Recycled . | . . . . . . . . . . . . . . . . . . . . . . . . . . . . . . Recycled Matter . | . . . . . . . . . . . . . . . . . . . . . . . . . . . . . . Retrieved Matter . | . . . . . . . . . . . . . . . . . . . . . . . . . . . . . . Retrieved Components 32 | . . . . . . 2 . 2 . . . . 3 . . . . 2 1 10 . . . 10 . 2 . . . Parts Scanalyzed 2 | . . . . . . 1 . . . . . . . . . . . . . . . . . 1 . . . . . Part Schematics Acquired 2 | . . . . . . 1 . . . . . . . . . . . . . . . . . 1 . . . . . Parts Damaged . | . . . . . . . . . . . . . . . . . . . . . . . . . . . . . . Bothacking | -11 -10 -10 -10 -9 -8 -7 -7 -7 -7 -7 -7 -6 -6 -6 -6 -6 -5 -5 -4 -4 -4 -4 -4 -3 -3 -2 -2 -2 -1 ------------ Run | Yrd Mat Min Exi Min Mat Fac Was Fac Low Low Dat Pro Fac Low Zio Dee Pro Fac Fac Ext Cet Arc Hub Res Tes Res Qua Sec Acc Used RIF Installer . | . . . . . . . . . . . . . . . . . . . . . . . . . . . . . . Robots Hacked 4 | . . . . . . . . . . . . . . . 3 1 . . . . . . . . . . . . . Non-combat 2 | . . . . . . . . . . . . . . . 2 . . . . . . . . . . . . . . Combat 2 | . . . . . . . . . . . . . . . 1 1 . . . . . . . . . . . . . Robot Hacks Applied 4 | . . . . . . . . . . . . . . . 3 1 . . . . . . . . . . . . . parse_system 4 | . . . . . . . . . . . . . . . 3 1 . . . . . . . . . . . . . Relay Couplers Released 4 | . . . . . . . . . . . . . . . . . . . . . . . 3 1 . . . . . Machine Destruction 4 | . . . . . . . . . . . . . . . . . . . . . . . 3 1 . . . . . Fabnet Peak Effective % . | . . . . . . . . . . . . . . . . . . . . . . . . . . . . . . Robots Rewired 23 | . . . . . . . . . . . . . . . . . . . 1 21 . . . . 1 . . . . Allies Hacked 3 | . . . . . . . . 2 . . . . . . . . . . . . . . . 1 . . . . . Hacks Repelled . | . . . . . . . . . . . . . . . . . . . . . . . . . . . . . . Allies | -11 -10 -10 -10 -9 -8 -7 -7 -7 -7 -7 -7 -6 -6 -6 -6 -6 -5 -5 -4 -4 -4 -4 -4 -3 -3 -2 -2 -2 -1 -------- Run | Yrd Mat Min Exi Min Mat Fac Was Fac Low Low Dat Pro Fac Low Zio Dee Pro Fac Fac Ext Cet Arc Hub Res Tes Res Qua Sec Acc Total Allies 66 | . . . . . . . 19 . . . . . . . 2 . . 3 1 29 5 . . 1 2 . . 4 . Largest Group 19 | . . . . . . . 19 12 . . . . . . 2 2 2 3 2 17 18 18 16 1 2 . . 2 1 Highest-Rated Group 1204 | . . . . . . . 475 334 . . . . . . 192 192 192 118 40 823 1131 1131 876 26 168 . . 1204 1204 Highest-Rated Ally 1204 | . . . . . . . 35 31 . . . . . . 96 96 96 54 30 159 159 159 96 26 142 . . 1204 1204 Total Orders 44 | . . . . . . . . . . . . . . 1 . 5 . . . 18 . 2 . . 7 . 9 2 . STAY 4 | . . . . . . . . . . . . . . . . . . . . 2 . 1 . . . . . 1 . FOLLOW 4 | . . . . . . . . . . . . . . . . . . . . 2 . 1 . . . . . 1 . EXPLORE 8 | . . . . . . . . . . . . . . . . . . . . . . . . . 3 . 5 . . RETURN 28 | . . . . . . . . . . . . . . 1 . 5 . . . 14 . . . . 4 . 4 . . Ally Attacks 958 | . . . . . . . 148 135 . . . . . 5 . 44 20 19 3 224 65 43 41 . 51 . 41 5 114 Total Damage 35062 | . . . . . . . 4124 2524 . . . . . 46 . 1156 495 482 . 5383 2248 1415 1702 . 2467 . 719 625 11676 Kills 153 | . . . . . . . 10 17 . . . . . 1 . 7 7 3 . 27 12 4 5 . 10 . 3 2 45 Allies Corrupted 8 | . . . . . . . . 1 . . . . . . . . . 1 . . . . 6 . . . . . . Allies Melted 1 | . . . . . . . . 1 . . . . . . . . . . . . . . . . . . . . . Intel | -11 -10 -10 -10 -9 -8 -7 -7 -7 -7 -7 -7 -6 -6 -6 -6 -6 -5 -5 -4 -4 -4 -4 -4 -3 -3 -2 -2 -2 -1 ------- Run | Yrd Mat Min Exi Min Mat Fac Was Fac Low Low Dat Pro Fac Low Zio Dee Pro Fac Fac Ext Cet Arc Hub Res Tes Res Qua Sec Acc Robot Analysis Total 11 | . 4 . . . . . . . . . . . . . . . . 1 . 1 . . . 2 . 1 2 . . Derelict Logs Recovered 13 | . . . . 2 . . . . 2 3 . 1 . 3 1 . 1 . . . . . . . . . . . . Drone Launches 42 | . . . . . . . . . . . . . . 2 . 7 . . . 21 . . . . 5 . 7 . . Drone Recoveries 39 | . . . . . . . . . . . . . . 2 . 6 . . . 21 . . . . 5 . 5 . . Exploration | -11 -10 -10 -10 -9 -8 -7 -7 -7 -7 -7 -7 -6 -6 -6 -6 -6 -5 -5 -4 -4 -4 -4 -4 -3 -3 -2 -2 -2 -1 ------------- Run | Yrd Mat Min Exi Min Mat Fac Was Fac Low Low Dat Pro Fac Low Zio Dee Pro Fac Fac Ext Cet Arc Hub Res Tes Res Qua Sec Acc Turns Passed 22644 | 112 1641 3547 468 838 225 558 284 1199 647 509 45 304 987 374 922 862 764 911 399 1231 286 276 317 1166 1045 474 823 806 624 Spaces Moved 21949 | 69 644 934 260 661 159 676 333 1672 1004 692 78 411 1182 442 1285 683 545 1247 420 805 194 130 381 1768 1428 738 1279 1080 749 Core 1548 | 69 644 801 . 34 . . . . . . . . . . . . . . . . . . . . . . . . . Treads . | . . . . . . . . . . . . . . . . . . . . . . . . . . . . . . Legs . | . . . . . . . . . . . . . . . . . . . . . . . . . . . . . . Wheels . | . . . . . . . . . . . . . . . . . . . . . . . . . . . . . . Hover 20360 | . . 133 260 627 159 676 333 1672 1004 692 78 411 1182 442 1285 683 545 1247 420 805 194 130 381 1768 1428 738 1279 1039 749 Flight . | . . . . . . . . . . . . . . . . . . . . . . . . . . . . . . Fastest Speed 15 | 50 50 180 180 77 59 50 50 51 56 56 56 56 54 61 61 61 61 53 37 37 103 37 28 30 35 35 15 15 36 Average Speed 71 | 50 206 240 180 100 84 66 51 53 56 56 56 56 56 74 61 107 126 53 46 62 103 66 49 49 43 35 38 37 42 Slowest Speed 300 | 50 250 250 180 300 147 156 54 56 56 56 56 56 58 127 61 133 127 114 53 103 103 103 53 116 107 90 90 90 120 Overloaded Moves 73 | . . . . . . . . . . . . . . . . . . . . . . . 16 35 . . 11 11 . Propulsion Burnouts . | . . . . . . . . . . . . . . . . . . . . . . . . . . . . . . Robots Hopped . | . . . . . . . . . . . . . . . . . . . . . . . . . . . . . . Cave-ins Triggered 1 | . . . . . 1 . . . . . . . . . . . . . . . . . . . . . . . . Teleports 3 | . . . . . . . . . . . . . . . . . . . . . . . . . . . 1 1 1 Microwarps 2 | . . . . . . . . . . . . . . . . . . . . . . . . . . . . 2 . Exploration Rate (%) 63 | 4 91 99 66 99 37 19 96 49 97 64 73 65 28 54 88 81 71 33 14 92 84 89 48 51 83 26 90 73 31 Regions Visited 29 Branch Regions 18 Pre-discovered Areas 4 | . . . 1 . . . . . . . 1 1 . 1 . . . . . . . . . . . . . . . Known Exits Taken 13 | . . . . . . . . 1 . . . . 1 . . . 1 . 1 1 1 1 1 1 1 1 1 1 . Unknown Exits Taken 14 | 1 1 1 1 1 1 . . . 1 1 1 1 . 1 1 1 . 1 . . . . . . . . . . . Scrap Searched 23 | . . 1 . 4 . . . . 4 4 . 3 . 2 4 . 1 . . . . . . . . . . . . Spaces Dug 396 | . 7 . . 10 9 7 . 27 16 30 . 13 21 30 3 . 20 32 27 . . . 17 33 24 25 21 16 8 Terrain Destroyed 854 | . 7 . . 29 9 9 1 58 20 48 . 15 29 37 3 64 36 37 45 5 . 11 27 41 39 38 44 55 147 Melee 245 | . 7 . . . 9 7 . 26 8 4 . 1 20 2 3 . . 31 9 . . . 8 29 20 25 16 13 7 Projectile 132 | . . . . . . 2 1 15 . . . 7 9 . . . 5 6 2 . . 11 19 12 7 6 12 14 4 AOE 439 | . . . . 29 . . . 17 12 44 . 7 . 35 . 64 31 . 34 . . . . . 10 . 13 24 119 Terrain Rammed 1 | . . . . . 1 . . . . . . . . . . . . . . . . . . . . . . . . Walls Destroyed . | . . . . . . . . . . . . . . . . . . . . . . . . . . . . . . Machines Disabled . | . . . . . . . . . . . . . . . . . . . . . . . . . . . . . . Actions | -11 -10 -10 -10 -9 -8 -7 -7 -7 -7 -7 -7 -6 -6 -6 -6 -6 -5 -5 -4 -4 -4 -4 -4 -3 -3 -2 -2 -2 -1 --------- Run | Yrd Mat Min Exi Min Mat Fac Was Fac Low Low Dat Pro Fac Low Zio Dee Pro Fac Fac Ext Cet Arc Hub Res Tes Res Qua Sec Acc Total 27222 | 102 834 2160 261 804 216 749 441 1857 1068 801 78 472 1406 477 1419 773 594 1435 558 1417 272 261 447 1945 1731 848 1512 1343 941 Wait 3054 | 2 93 1173 . 115 25 8 88 45 41 86 . 52 58 23 103 40 18 95 78 354 54 94 10 25 113 21 89 150 1 Move 21879 | 68 643 933 259 660 158 676 332 1671 1003 691 77 410 1181 441 1284 682 544 1246 419 804 193 129 380 1766 1427 736 1278 1040 748 Hop . | . . . . . . . . . . . . . . . . . . . . . . . . . . . . . . Pick Up 175 | 4 10 3 . 2 2 8 3 16 2 2 . . 15 2 6 1 2 13 3 7 4 1 2 19 12 3 12 7 14 Fast Attach 143 | 3 3 1 . 5 3 10 2 6 . 3 . . 9 . 4 10 . 5 2 2 3 2 4 6 17 . 10 15 18 Attach 100 | . 3 1 . 3 4 2 . 3 2 2 . . 10 . 3 . 2 6 2 2 1 1 2 9 11 2 7 7 15 Detach 30 | . 1 . . 1 1 2 . . . 1 . . 2 . 1 . . 1 . . . . . 1 5 . 2 4 8 Swap 221 | . 7 4 1 2 5 4 4 9 4 3 1 2 17 4 . 8 9 14 8 7 4 3 7 26 18 10 10 16 14 Drop 233 | . 8 5 1 . . 12 6 14 2 4 . . 19 2 10 11 2 13 3 11 8 3 3 22 23 3 20 14 14 Fire 769 | 25 56 40 . 16 6 12 6 52 4 5 . 7 25 3 . 16 17 7 24 61 5 28 27 34 66 36 55 64 72 Melee 375 | . 10 . . . 11 15 . 41 10 4 . 1 42 2 8 5 . 35 13 . . . 12 36 30 36 29 26 9 Ram 1 | . . . . . 1 . . . . . . . . . . . . . . . . . . . . . . . . Kick . | . . . . . . . . . . . . . . . . . . . . . . . . . . . . . . Crush . | . . . . . . . . . . . . . . . . . . . . . . . . . . . . . . Escape Stasis 95 | . . . . . . . . . . . . . . . . . . . . 65 . . . 1 . 1 . . 28 Rewire 119 | . . . . . . . . . . . . . . . . . . . 6 104 . . . . 9 . . . . Trap 28 | . . . . . . . . . . . . . 28 . . . . . . . . . . . . . . . . Miscellaneous . | . . . . . . . . . . . . . . . . . . . . . . . . . . . . . . Route ------- -11/Scrapyard -10/Materials (discovered 5 exits: [*Mat x3] / [*Min x2]) -10/Mines (discovered 4 exits: [*Mat x2] / *Exi / [*Sub]) -10/Exiles -9/Mines -8/Materials (discovered 2 exits: *Fac / [*Sto]) -7/Factory -7/Waste -7/Factory (discovered 5 exits: *Fac x3 / *Low x2) -7/Lower Caves -7/Lower Caves (discovered 2 exits: *Fac / *Dat) -7/Data Miner -6/Proximity Caves -6/Factory (discovered 4 exits: *Fac x2 / *Low x2) -6/Lower Caves -6/Zion (discovered 2 exits: [*Dee] / [*Pro]) -6/Deep Caves -5/Proximity Caves -5/Factory (discovered 4 exits: *Fac x2 / Upp x2) -4/Factory (discovered 5 exits: Upp x2 / *Ext x2 / Arm) -4/Extension (discovered 2 exits: *Res / *Cet) -4/Cetus (discovered 2 exits: *Res / *Arc) -4/Archives (discovered 3 exits: *Res / *Hub x2) -4/Hub_04(d) (discovered 4 exits: *Res x4) -3/Research (discovered 4 exits: *Res x2 / *Tes x2) -3/Testing -2/Research (discovered 5 exits: *Acc x3 / *Qua x2) -2/Quarantine (discovered 2 exits: *Acc / *Sec) -2/Section 7 -1/Access To Fleet Rendezvous History --------- Turn | Location | Event 6 | -11/Scrapyard | Discovered new exit (range 15) 113 | -11/Scrapyard | Entered Materials 139 | -10/Materials | Discovered new exit (range 15) 327 | -10/Materials | Build established: Mutant 592 | -10/Materials | Discovered new exit (range 4) 1089 | -10/Materials | Discovered new exit (range 13) 1309 | -10/Materials | Discovered new exit (range 10) 1416 | -10/Materials | Discovered new exit (range 16) 1560 | -10/Materials | Core integrity fell below 50% 1754 | -10/Materials | Entered Mines 1755 | -10/Mines | Assembled infested the area 2367 | -10/Mines | Discovered new exit (range 5) 2732 | -10/Mines | Received a Rocket Launcher from a helpful Derelict 2883 | -10/Mines | Discovered new exit (range 7) 3157 | -10/Mines | Discovered new exit (range 12) 3555 | -10/Mines | Discovered new exit (range 5) 4932 | -10/Mines | Build established: Scavenger-Mutant 5301 | -10/Mines | Entered Exiles 5345 | -10/Exiles | Met 8R-AWN 5375 | -10/Exiles | Met EX-HEX 5463 | -10/Exiles | Met EX-DEC 5499 | -10/Exiles | Visited The Gauntlet 5589 | -10/Exiles | Learned location of Zion (-6) 5755 | -10/Exiles | Discovered new exit (range 10) 5769 | -10/Exiles | Entered Mines 5864 | -9/Mines | Learned Materials emergency access door positions 5905 | -9/Mines | Discovered new exit (range 4) 6027 | -9/Mines | Build established: Mutant 6058 | -9/Mines | Core integrity fell below 20% 6096 | -9/Mines | Lost 5 parts (2p1u2w) 6138 | -9/Mines | Learned Materials non-interactive machine intel 6161 | -9/Mines | A weapon hastily lodged in a ceiling crevice suddenly fell to the ground 6452 | -9/Mines | Build established: Scavenger-Mutant 6607 | -9/Mines | Entered Materials 6607 | -8/Materials | Evolved 4 slots: Propulsion x2, Utility x2 6609 | -8/Materials | Loaded intel: 41 non-interactive machine locations 6757 | -8/Materials | Crushed by falling debris 6788 | -8/Materials | Lost 3 parts (2n1w) 6829 | -8/Materials | Discovered new exit (range 3) 6830 | -8/Materials | Discovered new exit (range 13) 6832 | -8/Materials | Entered Factory 6832 | -7/Factory | Evolved 2 slots: Propulsion x1, Utility x1 7382 | -7/Factory | Build established: Mutant 7390 | -7/Factory | Sucked down chute 7390 | -7/Factory | Entered Waste 7404 | -7/Waste | Warlord forces began an assault 7417 | -7/Waste | Spotted C-40 Crusher 7420 | -7/Waste | Spotted C-40 Crusher 7423 | -7/Waste | Allies destroyed C-40 Crusher 7426 | -7/Waste | Spotted C-40 Crusher 7431 | -7/Waste | Allies destroyed C-40 Crusher 7509 | -7/Waste | Spotted C-40 Crusher 7529 | -7/Waste | Allies destroyed C-40 Crusher 7557 | -7/Waste | Lost 4 allies 7581 | -7/Waste | Discovered new exit (range 20) 7674 | -7/Waste | Entered Factory 7674 | -7/Factory | Accompanied by 12 allies 7743 | -7/Factory | Build established: Hacker-Mutant 7967 | -7/Factory | Identified exit to Lower Caves 8024 | -7/Factory | Discovered new exit (range 13) 8035 | -7/Factory | Lost 3 allies 8154 | -7/Factory | Fabricated Cmb. Airjet (x2) 8290 | -7/Factory | Repaired Cmb. Airjet? 8474 | -7/Factory | First assault squad dispatched 8495 | -7/Factory | Repaired Broken Cmb. Airjet? 8539 | -7/Factory | Fabricated Cmb. Airjet? 8705 | -7/Factory | Discovered new exit (range 4) 8709 | -7/Factory | Discovered new exit (range 6) 8873 | -7/Factory | Entered Lower Caves 8969 | -7/Lower Caves | Learned 4 Factory zone layouts 8993 | -7/Lower Caves | Spotted B-75 Beast 9034 | -7/Lower Caves | Attracted the attention of an 0b10 checkpoint 9104 | -7/Lower Caves | Learned Factory terminal intel 9116 | -7/Lower Caves | Encountered a Warlord checkpoint 9134 | -7/Lower Caves | Build established: Mutant 9511 | -7/Lower Caves | Discovered new exit (range 16) 9520 | -7/Lower Caves | Entered another Lower Caves area 9532 | -7/Lower Caves | Learned Factory emergency access door positions 9592 | -7/Lower Caves | Discovered new exit (range 10) 9645 | -7/Lower Caves | Learned Factory stockpile data 9654 | -7/Lower Caves | Spotted B-75 Beast 9979 | -7/Lower Caves | Learned 4 Factory zone layouts 10018 | -7/Lower Caves | Discovered new exit (range 19) 10029 | -7/Lower Caves | Entered Data Miner 10031 | -7/Data Miner | Discovered new exit (range 6) 10039 | -7/Data Miner | Met Data Miner 10052 | -7/Data Miner | Learned location of Section 7 (-2) 10052 | -7/Data Miner | Acquired the access code to Warlord's prototype stash 10061 | -7/Data Miner | Received God Mode back door access code from Data Miner 10074 | -7/Data Miner | Entered Proximity Caves 10093 | -6/Proximity Caves | Attracted the attention of an 0b10 outpost 10187 | -6/Proximity Caves | Spotted B-75 Beast 10369 | -6/Proximity Caves | Discovered new exit (range 10) 10378 | -6/Proximity Caves | Entered Factory 10378 | -6/Factory | Evolved 2 slots: Utility x2 10379 | -6/Factory | Identified exit to Lower Caves 10379 | -6/Factory | Identified exit to Factory 10382 | -6/Factory | Loaded intel: 26 terminal locations 10676 | -6/Factory | Repaired Imp. Airjet? 10949 | -6/Factory | Build established: Hacker-Mutant 10965 | -6/Factory | Discovered exit to Factory (range 6) 11013 | -6/Factory | Fabricated Combat Drone Bay? 11034 | -6/Factory | Fabricated Cld. Aerolev Unit? 11147 | -6/Factory | Fabricated Cld. Aerolev Unit? 11165 | -6/Factory | Fabricated Cld. Aerolev Unit? 11365 | -6/Factory | Entered Lower Caves 11471 | -6/Lower Caves | Learned Factory terminal intel 11636 | -6/Lower Caves | Build established: Machinist-Mutant 11715 | -6/Lower Caves | Learned location of 1 exit from Factory 11735 | -6/Lower Caves | A Derelict revealed a hidden shortcut to a safe place 11739 | -6/Lower Caves | Entered Zion 11789 | -6/Zion | Received a visual enhancement algorithm 11793 | -6/Zion | Discovered new exit (range 12) 11809 | -6/Zion | System corruption cleaned by Quarantine Array 11836 | -6/Zion | Given A8's code to call for help 11868 | -6/Zion | Visited the Megawrench Repair Shop 11878 | -6/Zion | Learned Factory fabricator intel 12058 | -6/Zion | Megawrench repaired 9 parts 12222 | -6/Zion | Found Prototype Device 12222 | -6/Zion | Identified Phasing AFG 12306 | -6/Zion | Found CR-A16's Pointy Stick 12613 | -6/Zion | Discovered new exit (range 4) 12644 | -6/Zion | Enhanced Grunt warped into view, answering call for help 12645 | -6/Zion | Enhanced Grunt warped into view, answering call for help 12651 | -6/Zion | Saw the warning signs outside the Deep Caves entrance 12661 | -6/Zion | Entered Deep Caves 12661 | -6/Deep Caves | Accompanied by 2 allies 12826 | -6/Deep Caves | Z-Facility disabled 12837 | -6/Deep Caves | Attacked by Z-Imprinter 12850 | -6/Deep Caves | Allies destroyed Z-Imprinter 13088 | -6/Deep Caves | Destroyed 7 combat bots 13097 | -6/Deep Caves | Found Prototype Protection 13097 | -6/Deep Caves | Identified Zio. Weapon Casing 13386 | -6/Deep Caves | Discovered new exit (range 6) 13523 | -6/Deep Caves | Entered Proximity Caves 13523 | -5/Proximity Caves | Accompanied by 2 allies 13601 | -5/Proximity Caves | Learned Factory security intel 14257 | -5/Proximity Caves | Discovered exit to Factory (range 9) 14287 | -5/Proximity Caves | Entered Factory 14287 | -5/Factory | Evolved 2 slots: Power x1, Propulsion x1 14288 | -5/Factory | Identified exit to Upper Caves 14290 | -5/Factory | Loaded intel: 26 terminal locations 14291 | -5/Factory | Loaded intel: 6 fabricator locations 14437 | -5/Factory | Fabricated Weapon Mount? 14569 | -5/Factory | Fabricated Cld. Aerolev Unit? 14598 | -5/Factory | Build established: Hacker-Mutant 15013 | -5/Factory | Discovered new exit (range 15) 15044 | -5/Factory | Discovered new exit (range 10) 15045 | -5/Factory | Fabricated Mic. Antimatter Reactor? 15104 | -5/Factory | Fabricated Combat Drone Bay? 15198 | -5/Factory | Entered another Factory area 15198 | -4/Factory | Accompanied by 1 ally 15198 | -4/Factory | Evolved 2 slots: Utility x2 15421 | -4/Factory | Identified exit to Upper Caves 15421 | -4/Factory | Identified exit to Extension 15421 | -4/Factory | Identified exit to Armory 15597 | -4/Factory | Entered Extension 15597 | -4/Extension | Accompanied by 2 allies 15798 | -4/Extension | Rescued a captive Derelict 15803 | -4/Extension | Rescued a captive Derelict 15805 | -4/Extension | Rescued a captive Derelict 15806 | -4/Extension | Rescued a captive Derelict 16089 | -4/Extension | Spotted B-86 Titan 16140 | -4/Extension | Allies destroyed B-86 Titan 16144 | -4/Extension | Spotted B-86 Titan 16181 | -4/Extension | Allies destroyed B-86 Titan 16210 | -4/Extension | Lost 6 allies 16382 | -4/Extension | Rescued a captive Derelict 16388 | -4/Extension | Rescued a captive Derelict 16424 | -4/Extension | Rescued a captive Derelict 16632 | -4/Extension | Rescued A7 16632 | -4/Extension | Lost 3 allies 16660 | -4/Extension | Build established: Commander-Mutant 16705 | -4/Extension | Discovered new exit (range 10) 16706 | -4/Extension | Discovered new exit (range 6) 16711 | -4/Extension | Identified exit to Cetus 16828 | -4/Extension | Entered Cetus 16828 | -4/Cetus | Accompanied by 17 allies (A7) 16833 | -4/Cetus | Acquired a Cetus Manufacturing Module code from A7 16838 | -4/Cetus | Spotted Cetus Guard 16840 | -4/Cetus | Spotted Cetus Guard 16841 | -4/Cetus | Spotted Cetus Guard 16843 | -4/Cetus | Spotted Cetus Guard 16845 | -4/Cetus | Destroyed Cetus Guard 16848 | -4/Cetus | Allies destroyed Cetus Guard 16853 | -4/Cetus | Allies destroyed Cetus Guard 16859 | -4/Cetus | Allies destroyed Cetus Guard 16913 | -4/Cetus | Started Cetus Manufacturing Module 16920 | -4/Cetus | Escorted A7 to Cetus Mainframe 16938 | -4/Cetus | Manufactured an Enhanced Grunt 16963 | -4/Cetus | Manufactured an Enhanced Grunt 16973 | -4/Cetus | Discovered new exit (range 22) 16988 | -4/Cetus | Manufactured an Enhanced Grunt 16995 | -4/Cetus | Spotted Cetus Guard 16996 | -4/Cetus | Spotted Cetus Guard 16996 | -4/Cetus | Spotted Cetus Guard 16999 | -4/Cetus | Spotted Cetus Guard 17006 | -4/Cetus | Allies destroyed Cetus Guard 17006 | -4/Cetus | Allies destroyed Cetus Guard 17009 | -4/Cetus | Allies destroyed Cetus Guard 17011 | -4/Cetus | Allies destroyed Cetus Guard 17013 | -4/Cetus | Manufactured an Enhanced Grunt 17017 | -4/Cetus | Discovered new exit (range 21) 17029 | -4/Cetus | Met Revision 17 17038 | -4/Cetus | Manufactured an Enhanced Grunt 17083 | -4/Cetus | Identified exit to Archives 17114 | -4/Cetus | Entered Archives 17114 | -4/Archives | Accompanied by 18 allies (A7) 17119 | -4/Archives | Received a hacking code to weaken MAIN.C 17140 | -4/Archives | Discovered new exit (range 18) 17145 | -4/Archives | Discovered new exit (range 13) 17157 | -4/Archives | Identified exit to Hub_04(d) 17354 | -4/Archives | Discovered exit to Hub_04(d) (range 14) 17390 | -4/Archives | Entered Hub_04(d) 17390 | -4/Hub_04(d) | Accompanied by 16 allies 17394 | -4/Hub_04(d) | Identified exit to Research 17483 | -4/Hub_04(d) | Network Hub disabled 17522 | -4/Hub_04(d) | Lost 5 allies 17618 | -4/Hub_04(d) | Network Hub disabled 17641 | -4/Hub_04(d) | Network Hub disabled 17679 | -4/Hub_04(d) | Spotted Lightning 17681 | -4/Hub_04(d) | Spotted Lightning 17695 | -4/Hub_04(d) | Spotted Lightning 17695 | -4/Hub_04(d) | Spotted Lightning 17695 | -4/Hub_04(d) | Spotted Lightning 17707 | -4/Hub_04(d) | Entered Research 17707 | -3/Research | Evolved 2 slots: Utility x1, Weapon x1 17717 | -3/Research | Found Prototype Device 17786 | -3/Research | Identified Exp. Thermal Shield 17838 | -3/Research | Discovered new exit (range 11) 17879 | -3/Research | Found Prototype Hackware 17907 | -3/Research | Revision forces began assault on 0b10 17908 | -3/Research | Identified exit to Testing 17979 | -3/Research | Identified Exp. Hacking Suite 18097 | -3/Research | Found Prototype Slashing Weapon 18112 | -3/Research | Met up with Revision 17++ 18141 | -3/Research | Identified Nanosword 18162 | -3/Research | Build established: Hacker-Ninja 18318 | -3/Research | Found Prototype Launcher 18407 | -3/Research | Research terminal network offline 18419 | -3/Research | Identified Adv. Micro-nuke Launcher 18627 | -3/Research | Fabricated Cld. Antigrav System? 18651 | -3/Research | Spotted Striker 18725 | -3/Research | Discovered new exit (range 10) 18813 | -3/Research | Destroyed 7 combat bots 18829 | -3/Research | Lost 3 parts (3w) 18838 | -3/Research | Spotted Striker 18873 | -3/Research | Entered Testing 18914 | -3/Testing | Identified exit to Research 18937 | -3/Testing | Spotted PG-5EO6GN5D9K 18948 | -3/Testing | Rewired PG-5EO6GN5D9K 18973 | -3/Testing | Found Prototype Device 18973 | -3/Testing | Identified AEGIS Remote Shield 19032 | -3/Testing | Found Med. Regenerative Plating 19035 | -3/Testing | Found Prototype Protection 19035 | -3/Testing | Identified Hvy. Regenerative Plating 19043 | -3/Testing | Found Med. Regenerative Plating 19114 | -3/Testing | Found Prototype Ballistic Gun 19114 | -3/Testing | Identified Hyp. Multirail 19198 | -3/Testing | Fabricated Beam Splitter? 19290 | -3/Testing | Found Prototype Energy Gun 19290 | -3/Testing | Identified Hyp. EM Gauss Rifle 19335 | -3/Testing | Fabricated Cld. Antigrav System? 19343 | -3/Testing | Found Prototype Ballistic Cannon 19343 | -3/Testing | Identified Perforator 19420 | -3/Testing | First assault squad dispatched 19473 | -3/Testing | Spotted PG-MW7NTL8T4F 19524 | -3/Testing | Build established: Hacker-Scout 19684 | -3/Testing | Found Prototype Hackware 19712 | -3/Testing | Protovariant out of control (PG-MW7NTL8T4F) 19712 | -3/Testing | Unleashed a protovariant (PG-MW7NTL8T4F) 19726 | -3/Testing | Repaired Cmb. Gravmag System? 19743 | -3/Testing | Repaired Cld. Aerolev Unit? 19783 | -3/Testing | Repaired Cld. Aerolev Unit? 19788 | -3/Testing | Repaired Cld. Aerolev Unit? 19822 | -3/Testing | Repaired Cmb. Gravmag System? 19845 | -3/Testing | Repaired Broken Adv. Reaction Control System? 19918 | -3/Testing | Entered Research 19918 | -2/Research | Evolved 2 slots: Propulsion x1, Utility x1 19919 | -2/Research | Identified System Mapper 19923 | -2/Research | Identified exit to Quarantine 19974 | -2/Research | Identified exit to Access 20084 | -2/Research | Spotted B-90 Cyclops 20096 | -2/Research | Spotted B-90 Cyclops 20109 | -2/Research | Revealed the true nature of CR-A16's Pointy Stick 20113 | -2/Research | Destroyed B-90 Cyclops 20140 | -2/Research | Spotted B-90 Cyclops 20392 | -2/Research | Entered Quarantine 20431 | -2/Quarantine | Found Alien Artifact 20431 | -2/Quarantine | Identified Phase Armor 20664 | -2/Quarantine | Cryocooling Duct disabled 20679 | -2/Quarantine | Ambient heat levels rising (+20) 20679 | -2/Quarantine | Non-combat units ordered to evacuate 20726 | -2/Quarantine | Found Alien Artifact 20726 | -2/Quarantine | Identified Phase Redirector 20786 | -2/Quarantine | Discovered exit to Access (range 3) 20791 | -2/Quarantine | Found Alien Artifact 20801 | -2/Quarantine | Found Alien Artifact 20804 | -2/Quarantine | Identified Dimensional Node Initializer 20804 | -2/Quarantine | Initialized slip node 20807 | -2/Quarantine | Found Dimensional Node Initializer 20876 | -2/Quarantine | Met incapacitated Sigix Warrior 20876 | -2/Quarantine | Lockdown squad dispatched 20879 | -2/Quarantine | Found Alien Artifact 20879 | -2/Quarantine | Identified Core Reset Matrix 20879 | -2/Quarantine | Identified Hpw. Transdimensional Reconstructor 20879 | -2/Quarantine | Used Core Reset Matrix 20883 | -2/Quarantine | Sensed 13 artifacts in vicinity 20886 | -2/Quarantine | Acquired the access code to the Sigix quarantine chamber 20886 | -2/Quarantine | Unlocked Sigix quarantine chamber 20911 | -2/Quarantine | Found Subatomic Replicator 20926 | -2/Quarantine | Spotted Lightning 20938 | -2/Quarantine | Spotted Lightning 20940 | -2/Quarantine | Spotted Lightning 20997 | -2/Quarantine | Found Core Cannon 21053 | -2/Quarantine | Warped through subspace to slip node 21056 | -2/Quarantine | Repaired Cld. Antigrav System? 21056 | -2/Quarantine | Found Transdimensional Reconstructor 21059 | -2/Quarantine | Found Hpw. Transdimensional Reconstructor 21061 | -2/Quarantine | Used Subatomic Replicator to create Supercharged TR 21066 | -2/Quarantine | Found Dimensional Node Initializer 21169 | -2/Quarantine | Spotted Fortress 21209 | -2/Quarantine | Discovered new exit (range 5) 21212 | -2/Quarantine | Identified exit to Section 7 21215 | -2/Quarantine | Entered Section 7 21216 | -2/Section 7 | Sensed 23 artifacts in vicinity 21238 | -2/Section 7 | Found Core Reset Matrix 21240 | -2/Section 7 | Sensed 22 artifacts in vicinity 21272 | -2/Section 7 | Spotted S7 Guard 21283 | -2/Section 7 | Found Integrated Thermoelectric Network 21283 | -2/Section 7 | Installed Integrated Thermoelectric Network, gained heat-energy exchange potential 21364 | -2/Section 7 | Spotted B-90 Cyclops 21396 | -2/Section 7 | Found Microwarp Drive 21443 | -2/Section 7 | Spotted S7 Guard 21533 | -2/Section 7 | Found Core Membrane 21533 | -2/Section 7 | Installed Core Membrane, gained immunity to corruption 21553 | -2/Section 7 | Garrison activated, responded to threat 21652 | -2/Section 7 | Initialized slip node 21709 | -2/Section 7 | Spotted Alpha 7 21716 | -2/Section 7 | Spotted Alpha 7 21733 | -2/Section 7 | Spotted Executioner 21733 | -2/Section 7 | Spotted Executioner 21744 | -2/Section 7 | Found Terrabomb 21758 | -2/Section 7 | Spotted B-99 Colossus 21777 | -2/Section 7 | Found Integrated Reactor 21777 | -2/Section 7 | Installed Integrated Reactor, increased core energy generation (+10) 21840 | -2/Section 7 | Found LRC Insulator 21840 | -2/Section 7 | Installed LRC Insulator, gained EM resistance (25) 21846 | -2/Section 7 | Found LRC Inertial Stabilizer 21846 | -2/Section 7 | Installed LRC Inertial Stabilizer, increased mass support (+10) 21864 | -2/Section 7 | Found Integrated Reactor 21864 | -2/Section 7 | Installed Integrated Reactor, increased core energy generation (+10) 21970 | -2/Section 7 | Activated Sigix Exoskeleton 21970 | -2/Section 7 | Received instructions from Sigix Warrior 21973 | -2/Section 7 | Spotted Executioner 21975 | -2/Section 7 | Warped through subspace to slip node 22006 | -2/Section 7 | Sigix Exoskeleton integrity reduced to 80% 22011 | -2/Section 7 | Spotted Striker 22011 | -2/Section 7 | Spotted Executioner 22018 | -2/Section 7 | Garrison activated, responded to threat 22019 | -2/Section 7 | Sigix Exoskeleton integrity reduced to 60% 22021 | -2/Section 7 | Entered Access 22021 | -1/Access | Accompanied by 1 ally (Sigix Warrior) 22021 | -1/Access | Evolved 2 slots: Power x1, Utility x1 22040 | -1/Access | Found Unknown Protection 22040 | -1/Access | Identified Adv. Powered Armor 22045 | -1/Access | Found Adv. Powered Armor 22106 | -1/Access | Spotted Striker 22106 | -1/Access | Spotted Striker 22106 | -1/Access | Spotted Executioner 22114 | -1/Access | Allies destroyed Striker 22134 | -1/Access | Destroyed Striker 22135 | -1/Access | Energy Cycler disabled 22158 | -1/Access | Sigix Exoskeleton integrity reduced to 40% 22167 | -1/Access | Destroyed Executioner 22210 | -1/Access | Spotted Executioner 22210 | -1/Access | Scanned by Researcher 22211 | -1/Access | Spotted Executioner 22211 | -1/Access | Spotted Striker 22211 | -1/Access | Spotted Investigator 22214 | -1/Access | Allies destroyed Investigator 22219 | -1/Access | Destroyed 28 combat bots 22227 | -1/Access | Allies destroyed Executioner 22230 | -1/Access | Allies destroyed Executioner 22238 | -1/Access | Destroyed Striker 22290 | -1/Access | Sigix Exoskeleton integrity reduced to 20% 22348 | -1/Access | Spotted Striker 22348 | -1/Access | Spotted Executioner 22350 | -1/Access | Spotted Striker 22352 | -1/Access | Warped through subspace 22399 | -1/Access | Spotted Striker 22428 | -1/Access | Allies destroyed Striker 22439 | -1/Access | Allies destroyed Striker 22591 | -1/Access | Spotted Executioner 22596 | -1/Access | Spotted B-99 Colossus 22599 | -1/Access | Build established: Alien-Mutant 22604 | -1/Access | Spotted Striker 22643 | -1/Access | Discovered new exit (range 6) 22645 | -1/Access | Identified exit to Surface 22645 | *** | Heading to fleet! Last Messages --------------- 22601_ B-99 Colossus activates siege mode. 22604_ Slug penetrates Wall. 22604_ Penetrated by Slug. 22604_ Slug penetrates Wall. 22606_ O-32 Director: "IFF HANDSHAKE FAILED. SECURING TERMINAL." 22615_ Dropped Lrg. Storage Unit. 22630_ Triggered Blade Trap. 22630_ Massive razor-sharp blades shoot up from within the floor. 22630_ Adv. Phase Shifter severed. 22630_ Cld. Antigrav System severed. 22630_ Imp. Antigrav System severed. 22631_ Acquired Adv. Phase Shifter. 22633_ Acquired Cld. Antigrav System. 22636_ Acquired Imp. Antigrav System. 22639_ K-01 Serf knocked back. 22643_ The Access Shell folds into the floor. 22643_ EXIT=FOUND 22645_ EXIT=IDENTIFIED: SURFACE Map ----- +----------------------------------------------------+ | ????# #??????????????????????????????????????????? | | ????# #??????????????????????????????????????????? | | ????# #??????????????????????????????????????????? | | ????# #??????????????????????????????????????????? | | ????# #??????????????????????????????????????????? | | ????# #??????????????????????????????????????????? | | ????# #??????????????????????????????????????????? | | ????# #??????????????????????????????????????????? | | ????# #??????????????????????????????????????????? | | #####+#########??????????????????????????????????? | | # """"" #??????????????????????????????????? | | # ""T"" #??????????????????????????????????? | | # #??????????????????????????????????? | | # #??????????????????????????????????? | | #! #??????????????????????????????????? | | # C #??????????????????????????????????? | | #######+#######??????????????????????????????????? | | #???????????????????????????????????? | | #???????????????????????????????????? | | ####+###### #???????????????????????????????????? | | ?? ???# #?????#""""""""""#??????????????????? | | ?# #?????# #??????????????????? | | """"" # #?????# #??????????????????? | | """""""" # #?????# #??????????????????? | | """""""" # #?????# "" #??????????????????? | | """"" # #?????# "@ #??????????????????? | | # #?????# #??????????????????? | | # #?????# #??????????????????? | | ########### #?????# #??????????????????? | | ! ??# #????## ##?????????????????? | | ?# #????# #?????????????????? | | ?#C #????##"" ##?????????????????? | | #C #?????#"" #??????????????????? | | "" #C #?????#"" #??????????????????? | | "" + #?????#T #??????????????????? | | """""" " #?????#"" #??????????????????? | | """""" # #?????#"" #??????????????????? | | ? "" ?# #######""K ####### #?????????? | | "" ?# p k #?????????? | | ??# #?????????? | | ??# ######################### #?????????? | | #######???# #???????????????????????????????????? | | ??????????# #???????????????????????????????????? | | ??????????+ #???????????????????????????????????? | | ??????????# #???????????????????????????????????? | | ??????????# #???????????????????????????????????? | | ??????????# #???????????????????????????????????? | | ??????????# #???????????????????????????????????? | | ??????????# #???????????????????????????????????? | | ??????????# #???????????????????????????????????? | +----------------------------------------------------+ Best States ------------- Heat Dissipation 94 Energy Generation 67 Energy Capacity 400 Matter Stores 550 Matter Capacity 550 Sight Range 22 Robot Scan Range 16 Terrain Scan Density 10 Jamming Range 12 Additional Mass Support 9 Armor Coverage 450 Resistance: TH 75 Resistance: EM 25 Core Shielding 20 Propulsion Shielding 66 Weapon Shielding 66 Weapon Cycling 25 Phase Shifting 15 Evasion (%) 74 Targeting Accuracy 20 Offensive Hacking 50 Defensive Hacking 28 Authchip Count 3 Item Schematics ----------------- None Robot Schematics ------------------ None Fabricated ------------ Cmb. Airjet | x2 | -7/Factory Cmb. Airjet | x2 | -7/Factory Combat Drone Bay | x1 | -6/Factory | Authchip Cld. Aerolev Unit | x1 | -6/Factory | Authchip Cld. Aerolev Unit | x1 | -6/Factory | Authchip Cld. Aerolev Unit | x1 | -6/Factory | Authchip Weapon Mount | x2 | -5/Factory | Authchip Cld. Aerolev Unit | x1 | -5/Factory | Authchip Mic. Antimatter Reactor | x2 | -5/Factory | Preloaded Combat Drone Bay | x1 | -5/Factory | Authchip Cld. Antigrav System | x1 | -3/Research Beam Splitter | x1 | -3/Testing | Preloaded Cld. Antigrav System | x1 | -3/Testing Alien Tech Used ----------------- Phase Armor Phase Redirector Dimensional Node Initializer Core Reset Matrix High-powered Transdimensional Reconstructor Subatomic Replicator Integrated Thermoelectric Network Core Membrane Microwarp Drive Integrated Reactor LRC Insulator LRC Inertial Stabilizer Supercharged TR Achievements -------------- None Challenges ------------ None Game ------ Seed HardcellSeismicCleaver Manual? 0 Play Time 07:38:14 Cumulative 1093.0 hours Start 2024.04.25 @ 21:08:46 End 2024.05.01 @ 21:18:46 Sessions 9 Manual Loads 0 Difficulty Rogue Special Mode None Game No. 232 Rogue 200 Adventurer 31 Explorer 1 Win Type 2 Total 50 Types 33/1/8/7/0/0/1/0/0 Lore% 85 Gallery% 90 Achievement% 81 Wizard Run 0 Options --------- Layout 1 ASCII 0 Keyboard 0 Movement Arrows Keybinds 0 Fullscreen 1 Font 24/Terminus Map View 50x40 Zoom Use 0% Tactical HUD 1 Map Filters NONE Filters NONE Steam 1 RUN: 1c73f1f4-1084-4098-af72-8d4c13b4ff90